bitfinex-derivatives/quotes_BTCF0:USTF0_20250930
["timestamp","ask_amount","ask_price","bid_price","bid_amount"]
[1759217026178,1.60439061,114010.0,114000.0,0.03508]
[1759217026377,1.61721061,114010.0,114000.0,0.022]
[1759217027474,1.94171726,114010.0,114000.0,0.022]
[1759217029371,1.61721061,114010.0,114000.0,0.022]
[1759217030471,1.94171726,114010.0,114000.0,0.022]
[1759217030676,1.61721061,114010.0,114000.0,0.022]
[1759217033980,1.94171726,114010.0,114000.0,0.022]
[1759217034384,1.61721061,114010.0,114000.0,0.022]
[1759217034675,1.94171726,114010.0,114000.0,0.022]
[1759217034876,1.61721061,114010.0,114000.0,0.022]
[1759217037481,0.82205061,114010.0,114000.0,0.022]
[1759217037778,1.61701061,114010.0,114000.0,0.022]
[1759217041983,0.1228927,114000.0,113990.0,0.02132]
[1759217042283,0.1229003,113990.0,113980.0,0.1535107]
[1759217042481,1.60298967,113990.0,113980.0,0.1220754]
[1759217043179,1.60298967,113990.0,113980.0,0.1535107]
[1759217043578,1.67144612,113990.0,113980.0,0.1535107]
[1759217045185,1.67244612,113990.0,113980.0,0.1535107]
[1759217045684,1.69944612,113990.0,113980.0,0.1535107]
[1759217046083,1.69944612,113990.0,113980.0,0.20076451]
[1759217047079,1.69944612,113990.0,113980.0,0.16932921]
[1759217047284,1.69944612,113990.0,113980.0,0.15624921]
[1759217048188,1.37513127,113990.0,113980.0,0.15624921]
[1759217048387,1.69944612,113990.0,113980.0,0.17005921]
[1759217048588,0.90452612,113990.0,113980.0,0.17005921]
[1759217048885,1.69944612,113990.0,113980.0,0.17005921]
[1759217049589,0.90452612,113990.0,113980.0,0.17005921]
[1759217049887,1.69944612,113990.0,113980.0,0.17005921]
[1759217050383,1.69944612,113990.0,113980.0,0.49437406]
[1759217050989,1.69944612,113990.0,113980.0,0.17005921]
[1759217052185,1.37513127,113990.0,113980.0,0.17005921]
[1759217052384,1.69944612,113990.0,113980.0,0.17005921]
[1759217054391,0.47977097,113990.0,113980.0,0.49437406]
[1759217054591,1.27469097,113990.0,113980.0,0.49437406]
[1759217054893,1.36236127,113990.0,113980.0,0.49437406]
[1759217055092,1.36276127,113990.0,113980.0,0.44712025]
[1759217062802,1.36276127,113990.0,113980.0,0.1228054]
[1759217063701,1.36276127,113990.0,113980.0,0.1859776]
[1759217064902,1.27509097,113990.0,113980.0,0.1859776]
[1759217068103,1.27509097,113990.0,113980.0,0.51029245]
[1759217072712,1.27509097,113990.0,113980.0,0.1859776]
[1759217072909,1.27509097,113990.0,113980.0,0.51029245]
[1759217074410,1.27509097,113990.0,113980.0,0.1859776]
[1759217076018,0.48017097,113990.0,113980.0,0.51029245]
[1759217080213,0.48017097,113990.0,113980.0,0.1859776]
[1759217080412,0.48017097,113990.0,113980.0,0.51029245]
[1759217083608,0.56784117,113990.0,113980.0,0.51029245]
[1759217083812,0.48017097,113990.0,113980.0,0.51029245]
[1759217089118,0.46591214,113990.0,113980.0,0.51029245]
[1759217091120,0.55358164,113990.0,113980.0,0.51029245]
[1759217100632,0.55358164,113990.0,113980.0,0.1859776]
[1759217100819,0.46591214,113990.0,113980.0,0.51029245]
[1759217102324,0.46591214,113990.0,113980.0,0.83438936]
[1759217104727,0.79011802,113990.0,113980.0,0.83438936]
[1759217107622,0.87778752,113990.0,113980.0,0.83438936]
[1759217111527,0.55358164,113990.0,113980.0,0.83438936]
[1759217112226,0.45771097,113990.0,113980.0,1.23438936]
[1759217112429,0.09691097,113990.0,113980.0,1.23438936]
[1759217112724,0.09651097,113990.0,113980.0,1.23438936]
[1759217112925,0.09691097,113990.0,113980.0,1.23438936]
[1759217113126,0.09691097,113990.0,113980.0,1.17121716]
[1759217113624,0.0284,113990.0,113980.0,1.25018627]
[1759217113818,0.0284,113990.0,113980.0,1.61098627]
[1759217114020,0.028,113990.0,113980.0,1.61098627]
[1759217114224,0.0284,113990.0,113980.0,1.61098627]
[1759217114527,0.028,113990.0,113980.0,1.93519215]
[1759217114727,0.0284,113990.0,113980.0,1.93519215]
[1759217114916,0.0284,113990.0,113980.0,1.9440108]
[1759217115122,0.0284,113990.0,113980.0,1.86504169]
[1759217117531,0.0284,113990.0,113980.0,1.9440108]
[1759217119829,0.0284,113990.0,113980.0,1.86504169]
[1759217122634,0.0008,114010.0,114000.0,0.77117346]
[1759217122833,0.0008,114010.0,114000.0,1.94460382]
[1759217123036,0.38397,114020.0,114010.0,0.122754]
[1759217123333,0.39338778,114020.0,114010.0,0.50997555]
[1759217123932,0.71759366,114020.0,114010.0,1.30453555]
[1759217124734,0.71759366,114020.0,114010.0,1.24151988]
[1759217124935,0.80523906,114020.0,114010.0,1.24151988]
[1759217125837,0.80523906,114020.0,114010.0,1.24551988]
[1759217126135,0.80523906,114020.0,114010.0,1.25651988]
[1759217127130,0.38477,114020.0,114010.0,1.25651988]
[1759217127336,0.38477,114020.0,114010.0,1.58072576]
[1759217127531,0.38397,114020.0,114010.0,1.25651988]
[1759217127725,0.38437,114020.0,114010.0,1.25651988]
[1759217127937,0.02357,114020.0,114010.0,1.25651988]
[1759217129538,0.02357,114020.0,114010.0,1.61731988]
[1759217132842,0.02357,114020.0,114010.0,1.94152576]
[1759217133141,0.02357,114020.0,114010.0,1.68033555]
[1759217135845,0.02357,114020.0,114010.0,2.00454143]
[1759217137044,0.02357,114020.0,114010.0,1.94152576]
[1759217137241,0.02357,114020.0,114010.0,2.00454143]
[1759217138540,0.0004,114020.0,114010.0,2.00454143]
[1759217139749,0.0004,114020.0,114010.0,1.94152576]
[1759217139946,0.0004,114020.0,114010.0,2.00454143]
[1759217140147,0.0004,114020.0,114010.0,1.94152576]
[1759217141251,0.0004,114020.0,114010.0,2.00454143]
[1759217141650,0.0004,114020.0,114010.0,1.94152576]
[1759217142247,0.0004,114020.0,114010.0,2.00454143]
[1759217147160,0.0004,114020.0,114010.0,1.94152576]
[1759217149864,0.0004,114020.0,114010.0,2.02029796]
[1759217151760,0.0004,114020.0,114010.0,1.22573796]
[1759217152268,0.0004,114020.0,114010.0,2.02005796]
[1759217155270,0.09357356,114030.0,114020.0,0.1231576]
[1759217155467,0.09357356,114030.0,114020.0,0.83465278]
[1759217156572,0.09857356,114030.0,114020.0,0.83465278]
[1759217158971,0.09857356,114030.0,114020.0,1.62897278]
[1759217159273,0.09857356,114030.0,114020.0,0.83465278]
[1759217159473,0.42277944,114030.0,114020.0,0.83465278]
[1759217159776,0.09857356,114030.0,114020.0,0.83465278]
[1759217159964,0.11219356,114030.0,114020.0,0.18624102]
[1759217160271,0.11219356,114030.0,114020.0,0.82155278]
[1759217160768,0.43639944,114030.0,114020.0,0.82155278]
[1759217163772,0.43639944,114030.0,114020.0,0.17314102]
[1759217163971,0.43639944,114030.0,114020.0,0.82155278]
[1759217164273,0.11219356,114030.0,114020.0,0.4971488]
[1759217165971,0.11219356,114030.0,114020.0,0.5102488]
[1759217175589,0.11219356,114030.0,114020.0,0.44716538]
[1759217182099,0.11219356,114030.0,114020.0,0.5102488]
[1759217186494,0.56063426,114030.0,114020.0,0.18624102]
[1759217186893,0.56063426,114030.0,114020.0,0.5102488]
[1759217193510,0.56063426,114030.0,114020.0,0.17314102]
[1759217193511,0.88464204,114030.0,114020.0,0.17314102]
[1759217197307,0.56063426,114030.0,114020.0,0.17314102]
[1759217198307,0.88464204,114030.0,114020.0,0.08549342]
[1759217199407,0.88464204,114030.0,114020.0,0.17314182]
[1759217200915,0.56063426,114030.0,114020.0,0.17314182]
[1759217201508,0.56063426,114030.0,114020.0,0.4971496]
[1759217203613,0.56063426,114030.0,114020.0,0.4095012]
[1759217204816,0.56063426,114030.0,114020.0,0.34641778]
[1759217205111,0.56063426,114030.0,114020.0,0.02241]
[1759217205920,0.88464204,114030.0,114020.0,0.1100584]
[1759217206117,0.56063426,114030.0,114020.0,0.1100584]
[1759217206715,0.56063426,114030.0,114020.0,0.43406618]
[1759217207016,0.56063426,114030.0,114020.0,0.4971496]
[1759217209622,0.56063426,114030.0,114020.0,0.17314182]
[1759217211824,0.88464204,114030.0,114020.0,0.17314182]
[1759217212424,0.88464204,114030.0,114020.0,0.08549342]
[1759217214029,0.88464204,114030.0,114020.0,0.17314182]
[1759217224232,0.88467554,114030.0,114020.0,0.4971831]
[1759217226734,0.88467554,114030.0,114020.0,0.17314182]
[1759217226935,0.88467554,114030.0,114020.0,0.4971831]
[1759217227135,0.88467554,114030.0,114020.0,0.43409968]
[1759217232434,0.56063426,114030.0,114020.0,0.43409968]
[1759217232639,0.88467554,114030.0,114020.0,0.43409968]
[1759217235644,0.88467554,114030.0,114020.0,0.4971831]
[1759217236045,0.88467554,114030.0,114020.0,0.43409968]
[1759217237047,0.88467554,114030.0,114020.0,0.44740968]
[1759217245850,0.88467554,114030.0,114020.0,0.5104931]
[1759217279785,0.88467554,114030.0,114020.0,0.44740968]
[1759217281598,1.67843554,114030.0,114020.0,0.44740968]
[1759217282396,1.67843554,114030.0,114020.0,0.1233684]
[1759217282597,1.67843554,114030.0,114020.0,0.44740968]
[1759217286201,1.67842371,114030.0,114020.0,0.1233684]
[1759217286499,1.35435426,114030.0,114020.0,0.1233684]
[1759217286702,1.25309356,114030.0,114020.0,0.1233684]
[1759217286898,0.45937356,114030.0,114020.0,0.44739785]
[1759217287095,0.45857356,114030.0,114020.0,0.44739785]
[1759217287397,0.45897356,114030.0,114020.0,0.44739785]
[1759217287798,0.54661376,114030.0,114020.0,0.44739785]
[1759217288807,0.45897356,114030.0,114020.0,0.44739785]
[1759217290303,0.09817356,114030.0,114020.0,0.44739785]
[1759217292404,0.0054,114030.0,114020.0,2.00187785]
[1759217292605,0.005,114030.0,114020.0,2.01973311]
[1759217292998,0.0054,114030.0,114020.0,2.01973311]
[1759217294307,0.0054,114030.0,114020.0,2.02860972]
[1759217294801,0.0054,114030.0,114020.0,2.10738192]
[1759217295009,0.0054,114030.0,114020.0,2.09169789]
[1759217297410,0.0054,114030.0,114020.0,2.02860972]
[1759217299311,0.0054,114030.0,114020.0,2.02848972]
[1759217299802,0.0054,114030.0,114020.0,1.23492972]
[1759217300003,0.0054,114030.0,114020.0,2.02848972]
[1759217300910,0.0054,114030.0,114020.0,2.09153519]
[1759217301507,0.0054,114030.0,114020.0,2.02848972]
[1759217302111,0.07039697,114040.0,114030.0,0.0876403]
[1759217302313,0.0008,114040.0,114030.0,1.19407423]
[1759217302509,0.04239847,114060.0,114050.0,0.1221649]
[1759217302814,0.38245,114070.0,114060.0,0.1221572]
[1759217303012,0.38325,114070.0,114060.0,0.50921359]
[1759217303217,0.38245,114070.0,114060.0,0.44618665]
[1759217303511,0.4700597,114070.0,114060.0,0.44618665]
[1759217304217,0.4793426,114070.0,114060.0,0.49339123]
[1759217305125,0.4931126,114070.0,114060.0,0.40577403]
[1759217307416,0.56358133,114070.0,114060.0,0.40577403]
[1759217309811,0.56358133,114070.0,114060.0,0.49339143]
[1759217310718,0.56358133,114070.0,114060.0,0.40577403]
[1759217321121,0.56358133,114070.0,114060.0,0.49339143]
[1759217321626,0.88761078,114070.0,114060.0,0.06876458]
[1759217322028,0.88761078,114070.0,114060.0,0.05300446]
[1759217322228,1.28761078,114070.0,114060.0,0.05300446]
[1759217322417,1.28761078,114070.0,114060.0,0.03144446]
[1759217323423,1.28761078,114070.0,114050.0,0.07864904]
[1759217323626,1.60006675,114060.0,114050.0,0.10020904]
[1759217324624,1.60006675,114060.0,114050.0,0.10620904]
[1759217325517,1.60006675,114060.0,114050.0,0.10420904]
[1759217325919,1.9240962,114060.0,114050.0,0.10420904]
[1759217326121,0.82690664,114060.0,114050.0,0.03144446]
[1759217326315,1.62010664,114060.0,114050.0,0.03344446]
[1759217326923,2.34413609,114060.0,114050.0,0.03344446]
[1759217327523,2.34413609,114060.0,114050.0,0.002]
[1759217330930,1.55093609,114060.0,114050.0,0.002]
[1759217331135,2.34413609,114060.0,114050.0,0.002]
[1759217332833,1.55093609,114060.0,114050.0,0.002]
[1759217333133,2.34417609,114060.0,114050.0,0.002]
[1759217333634,1.55093609,114060.0,114050.0,0.002]
[1759217334134,2.34417609,114060.0,114050.0,0.002]
[1759217337140,2.78157609,114060.0,114050.0,0.002]
[1759217338741,3.14237609,114060.0,114050.0,0.002]
[1759217340043,2.34913609,114060.0,114050.0,0.002]
[1759217340244,3.14237609,114060.0,114050.0,0.002]
[1759217343045,0.123455,114050.0,114040.0,0.03144446]
[1759217343346,0.80828445,114050.0,114040.0,0.03144446]
[1759217344442,0.80828445,114050.0,114040.0,0.04444446]
[1759217344842,0.80828445,114050.0,114040.0,0.013]
[1759217346443,1.13234126,114050.0,114040.0,0.013]
[1759217346844,1.92558126,114050.0,114040.0,0.013]
[1759217348847,1.13234126,114050.0,114040.0,0.013]
[1759217349043,1.92558126,114050.0,114040.0,0.013]
[1759217349437,0.484255,114050.0,114040.0,0.013]
[1759217349639,1.92558126,114050.0,114040.0,0.013]
[1759217350041,1.92558126,114050.0,114040.0,0.04444446]
[1759217352152,1.13234126,114050.0,114040.0,0.04444446]
[1759217352650,1.92558126,114050.0,114040.0,0.04444446]
[1759217354851,1.13234126,114050.0,114040.0,0.04444446]
[1759217355147,1.92558126,114050.0,114040.0,0.04444446]
[1759217357754,1.13234126,114050.0,114040.0,0.04444446]
[1759217357954,1.92558126,114050.0,114040.0,0.04444446]
[1759217358154,1.13234126,114050.0,114040.0,0.04444446]
[1759217358454,1.92558126,114050.0,114040.0,0.04444446]
[1759217358848,1.13234126,114050.0,114040.0,0.04444446]
[1759217359058,1.92558126,114050.0,114040.0,0.04444446]
[1759217379481,1.92558126,114050.0,114040.0,0.04457383]
[1759217390086,1.92558126,114050.0,114040.0,0.09177841]
[1759217391387,2.28638126,114050.0,114040.0,0.09177841]
[1759217394789,2.28638126,114050.0,114040.0,0.04457383]
[1759217397290,2.28638126,114050.0,114040.0,0.013]
[1759217400393,2.28638126,114050.0,114040.0,0.06020458]
[1759217401788,2.28638126,114050.0,114040.0,0.013]
[1759217403090,2.28638126,114050.0,114040.0,0.09178062]
[1759217406693,2.28622126,114050.0,114040.0,0.09178062]
[1759217408296,1.96214183,114050.0,114040.0,0.09178062]
[1759217408596,1.16906183,114050.0,114040.0,0.09178062]
[1759217408897,1.96214183,114050.0,114040.0,0.09178062]
[1759217409794,0.845055,114050.0,114040.0,0.013]
[1759217409993,1.96214183,114050.0,114040.0,0.013]
[1759217410196,1.96214183,114050.0,114040.0,0.04457559]
[1759217412000,1.96214183,114050.0,114040.0,0.09178017]
[1759217417098,1.96214183,114050.0,114040.0,0.04457559]
[1759217417603,2.28614866,114050.0,114040.0,0.04457559]
[1759217417805,2.28614866,114050.0,114030.0,0.07878112]
[1759217417806,0.1089413,114040.0,114030.0,0.07878112]
[1759217418008,1.11775496,114040.0,114030.0,0.07878112]
[1759217419206,1.11775496,114040.0,114030.0,0.04857654]
[1759217422809,1.47855496,114040.0,114030.0,0.04857654]
[1759217430606,1.47855496,114040.0,114030.0,0.017]
[1759217431518,2.27159496,114040.0,114030.0,0.017]
[1759217432013,1.47855496,114040.0,114030.0,0.017]
[1759217432414,2.27159496,114040.0,114030.0,0.017]
[1759217436109,1.47855496,114040.0,114030.0,0.017]
[1759217436314,2.27159496,114040.0,114030.0,0.017]
[1759217436716,1.47855496,114040.0,114030.0,0.017]
[1759217436915,2.27159496,114040.0,114030.0,0.017]
[1759217441321,2.70297485,114040.0,114030.0,0.017]
[1759217441922,2.30297485,114040.0,114030.0,0.017]
[1759217442516,2.30297485,114040.0,114010.0,0.08276458]
[1759217442517,0.1087465,114020.0,114010.0,0.08276458]
[1759217442712,1.94739333,114020.0,114010.0,0.08276458]
[1759217443713,1.95649333,114020.0,114010.0,0.04720458]
[1759217445717,1.95849333,114020.0,114010.0,0.04720458]
[1759217446217,1.16545333,114020.0,114010.0,0.04720458]
[1759217446421,1.95849333,114020.0,114010.0,0.04720458]
[1759217447623,2.02817964,114020.0,114010.0,0.04720458]
[1759217447823,2.02817964,114020.0,114010.0,0.07874279]
[1759217449228,1.23513964,114020.0,114010.0,0.03153821]
[1759217449426,2.02817964,114020.0,114010.0,0.03153821]
[1759217450021,1.23513964,114020.0,114010.0,0.03153821]
[1759217450222,2.02817964,114020.0,114010.0,0.03153821]
[1759217450423,1.23513964,114020.0,114010.0,0.05259821]
[1759217450723,2.02817964,114020.0,114010.0,0.05259821]
[1759217452624,0.90203281,114020.0,114010.0,0.06558821]
[1759217452826,1.22603964,114020.0,114010.0,0.06558821]
[1759217453018,2.01911964,114020.0,114010.0,0.06558821]
[1759217453329,2.01907964,114020.0,114010.0,0.06558821]
[1759217454928,2.01911964,114020.0,114010.0,0.06558821]
[1759217456430,1.22603964,114020.0,114010.0,0.06558821]
[1759217456628,2.01911964,114020.0,114010.0,0.06558821]
[1759217457631,1.22603964,114020.0,114010.0,0.06558821]
[1759217457826,2.01911964,114020.0,114010.0,0.06558821]
[1759217466737,2.01911964,114020.0,114010.0,0.11279279]
[1759217469437,2.01911964,114020.0,114010.0,0.08125458]
[1759217470137,2.01911964,114020.0,114010.0,0.11281628]
[1759217470437,2.34341667,114020.0,114010.0,0.08125458]
[1759217472241,1.55033667,114020.0,114010.0,0.08125458]
[1759217472430,2.34341667,114020.0,114010.0,0.08125458]
[1759217497353,2.34341667,114020.0,114010.0,0.06826458]
[1759217497747,2.6675686,114020.0,114010.0,0.04720458]
[1759217497952,2.6675686,114020.0,114010.0,0.07878972]
[1759217500151,2.6675686,114020.0,114010.0,0.03158514]
[1759217503359,1.8744886,114020.0,114010.0,0.03158514]
[1759217503554,3.1048886,114020.0,114010.0,0.03158514]
[1759217508061,0.0876553,114010.0,114000.0,0.11346972]
[1759217508266,1.11966916,114010.0,114000.0,0.11346972]
[1759217509763,1.11966916,114010.0,114000.0,0.11546972]
[1759217510264,1.12867615,114010.0,114000.0,0.08388458]
[1759217510466,1.12867615,114010.0,114000.0,0.08488458]
[1759217514970,1.13559615,114010.0,114000.0,0.07190458]
[1759217515572,1.13559615,114010.0,114000.0,0.1034606]
[1759217518467,1.92859615,114010.0,114000.0,0.1034606]
[1759217519274,1.13559615,114010.0,114000.0,0.1034606]
[1759217519473,1.92859615,114010.0,114000.0,0.1034606]
[1759217520775,1.92859615,114010.0,114000.0,0.0817606]
[1759217521075,1.92859615,114010.0,114000.0,0.03455602]
[1759217530285,1.92883903,114010.0,114000.0,0.03455602]
[1759217531282,1.13583903,114010.0,114000.0,0.03455602]
[1759217531488,1.92883903,114010.0,114000.0,0.03455602]
[1759217532283,1.60456566,114010.0,114000.0,0.05758602]
[1759217534287,0.81156566,114010.0,114000.0,0.05758602]
[1759217534485,1.60456566,114010.0,114000.0,0.05758602]
[1759217535691,1.60456566,114010.0,114000.0,0.03455602]
[1759217539792,2.32883903,114010.0,114000.0,0.03455602]
[1759217539994,2.36021892,114010.0,114000.0,0.003]
[1759217540193,1.53583903,114010.0,114000.0,0.003]
[1759217540391,2.32939903,114010.0,114000.0,0.003]
[1759217541493,0.1089293,114000.0,113990.0,0.05332602]
[1759217541699,1.91199604,114000.0,113990.0,0.05332602]
[1759217542092,1.11827604,114000.0,113990.0,0.05332602]
[1759217542293,1.91195604,114000.0,113990.0,0.05332602]
[1759217543397,1.92495604,114000.0,113990.0,0.05332602]
[1759217546700,2.05326089,114000.0,113990.0,0.05332602]
[1759217559015,2.05326089,114000.0,113990.0,0.03155602]
[1759217559715,0.1089366,113990.0,113980.0,0.08305963]
[1759217559916,0.81372271,113990.0,113980.0,0.08305963]
[1759217560814,0.8137232,113990.0,113980.0,0.08305963]
[1759217561216,0.8228232,113990.0,113980.0,0.04770963]
[1759217561418,0.78629657,113990.0,113980.0,0.04770963]
[1759217561613,0.79429657,113990.0,113980.0,0.00010505]
[1759217561814,0.50140309,113990.0,113980.0,0.00010505]
[1759217562123,1.21500309,113990.0,113980.0,0.00010505]
[1759217562326,1.1836232,113990.0,113980.0,0.00010505]
[1759217562527,2.3855832,113990.0,113980.0,0.00050505]
[1759217562916,2.70985657,113990.0,113980.0,0.00010505]
[1759217563115,2.41696309,113990.0,113980.0,0.00050505]
[1759217564324,2.3855832,113990.0,113980.0,0.00050505]
[1759217565324,2.3857832,113990.0,113980.0,0.00050505]
[1759217569027,2.06150983,113990.0,113980.0,0.00050505]
[1759217569228,2.3857832,113990.0,113980.0,0.00050505]
[1759217569919,1.5836232,113990.0,113980.0,0.00050505]
[1759217570119,2.3857832,113990.0,113980.0,0.00050505]
[1759217571831,2.8231832,113990.0,113980.0,0.00050505]
[1759217572030,2.49890983,113990.0,113980.0,0.00050505]
[1759217572330,2.8231832,113990.0,113980.0,0.00050505]
[1759217575222,2.8230632,113990.0,113980.0,0.00050505]
[1759217579936,2.0210232,113990.0,113980.0,0.00050505]
[1759217580233,2.8228632,113990.0,113980.0,0.00050505]
[1759217581535,2.8227832,113990.0,113980.0,0.00050505]
[1759217590436,3.17871432,113990.0,113980.0,0.00050505]
[1759217590941,3.14733443,113990.0,113980.0,0.00050505]
[1759217591142,3.17871432,113990.0,113980.0,0.00050505]
[1759217592249,2.37695432,113990.0,113980.0,0.00050505]
[1759217592542,3.17835432,113990.0,113980.0,0.00050505]
[1759217593346,2.77835432,113990.0,113980.0,0.00050505]
[1759217598748,0.109362,113970.0,113960.0,0.08354458]
[1759217598950,1.97636753,113970.0,113960.0,0.08434458]
[1759217599450,2.04599322,113970.0,113960.0,0.08434458]
[1759217599646,2.04609827,113970.0,113960.0,0.08434458]
[1759217600146,1.72168597,113970.0,113960.0,0.08434458]
[1759217600347,2.37743057,113970.0,113960.0,0.07348458]
[1759217600648,2.37743057,113970.0,113960.0,0.07468458]
[1759217600948,2.37743057,113970.0,113960.0,0.07508458]
[1759217601151,2.37731057,113970.0,113960.0,0.07508458]
[1759217601542,2.37731057,113970.0,113960.0,0.07468458]
[1759217601844,2.37731057,113970.0,113960.0,0.07508458]
[1759217602148,2.37731057,113970.0,113960.0,0.47508458]
[1759217602347,2.70172287,113970.0,113960.0,0.05260458]
[1759217602544,2.40869046,113970.0,113960.0,0.005]
[1759217602844,2.40869046,113970.0,113960.0,0.0054]
[1759217603246,2.37731057,113970.0,113960.0,0.005]
[1759217603445,2.40869046,113970.0,113960.0,0.0054]
[1759217603646,2.40869046,113970.0,113960.0,0.0004]
[1759217603835,0.1093774,113950.0,113940.0,0.035]
[1759217604040,1.97647942,113950.0,113940.0,0.03496]
[1759217604251,1.95676619,113950.0,113940.0,0.03496]
[1759217604550,2.28117849,113950.0,113940.0,0.03576]
[1759217604844,1.97735172,113950.0,113940.0,0.03496]
[1759217605050,1.97735172,113950.0,113940.0,0.03536]
[1759217605252,1.95676619,113950.0,113940.0,0.03536]
[1759217605752,1.97734688,113950.0,113940.0,0.03536]
[1759217605952,1.97738688,113950.0,113940.0,0.03536]
[1759217606155,1.17606688,113950.0,113940.0,0.03536]
[1759217606354,1.95680619,113950.0,113940.0,0.03536]
[1759217606853,1.97738294,113950.0,113940.0,0.03536]
[1759217607155,1.97938294,113950.0,113940.0,0.03536]
[1759217607355,1.96763062,113950.0,113940.0,0.03536]
[1759217607555,1.98820407,113950.0,113940.0,0.03536]
[1759217607856,1.96763062,113950.0,113940.0,0.03536]
[1759217610352,1.96755062,113950.0,113940.0,0.03536]
[1759217610657,2.29196292,113950.0,113940.0,0.03536]
[1759217610955,2.29196292,113950.0,113940.0,0.43536]
[1759217615555,2.29196292,113950.0,113940.0,0.43496]
[1759217615762,2.31252259,113950.0,113940.0,0.43496]
[1759217616056,2.29196292,113950.0,113940.0,0.03536]
[1759217616553,2.29172292,113950.0,113940.0,0.03496]
[1759217616747,2.29172292,113950.0,113940.0,0.03536]
[1759217617357,2.29168292,113950.0,113940.0,0.03536]
[1759217620054,2.29164292,113950.0,113940.0,0.03536]
[1759217620864,2.31199762,113950.0,113940.0,0.03536]
[1759217623562,2.31199762,113950.0,113940.0,0.02177]
[1759217623749,2.31199762,113950.0,113940.0,0.02137]
[1759217623951,2.31199762,113950.0,113940.0,0.02177]
[1759217624152,2.32113762,113950.0,113940.0,0.02177]
[1759217624362,2.32113762,113950.0,113940.0,0.0004]
[1759217627250,2.32113762,113950.0,113930.0,0.0008]
[1759217627251,0.1176865,113940.0,113930.0,0.0008]
[1759217627450,1.49267163,113940.0,113930.0,0.0008]
[1759217627654,0.0877242,113930.0,113920.0,0.01396]
[1759217627862,1.9197788,113930.0,113920.0,0.03533]
[1759217628460,1.98731931,113930.0,113920.0,0.03533]
[1759217628663,1.98739931,113930.0,113920.0,0.03533]
[1759217628858,1.98739931,113930.0,113920.0,0.03933]
[1759217629062,1.33857471,113930.0,113920.0,0.03933]
[1759217629257,1.98739931,113930.0,113920.0,0.03933]
[1759217629565,1.98735931,113930.0,113920.0,0.03933]
[1759217630362,1.18647931,113930.0,113920.0,0.04333]
[1759217630563,1.98751931,113930.0,113920.0,0.04433]
[1759217630760,1.66310701,113930.0,113920.0,0.04433]
[1759217631463,1.68346908,113930.0,113920.0,0.04433]
[1759217631666,0.88242908,113930.0,113920.0,0.03533]
[1759217631867,0.88242908,113930.0,113920.0,0.03933]
[1759217632166,1.68342908,113930.0,113920.0,0.03933]
[1759217633463,0.88242908,113930.0,113920.0,0.03933]
[1759217633663,2.00780138,113930.0,113920.0,0.03933]
[1759217634261,1.20684138,113930.0,113920.0,0.03933]
[1759217634461,2.00772138,113930.0,113920.0,0.03933]
[1759217634870,1.68330908,113930.0,113920.0,0.03933]
[1759217635070,1.35889678,113930.0,113920.0,0.03933]
[1759217635271,1.68346908,113930.0,113920.0,0.03933]
[1759217635768,1.66310701,113930.0,113920.0,0.03933]
[1759217635973,1.66314701,113930.0,113920.0,0.03933]
[1759217636467,0.86206701,113930.0,113920.0,0.03933]
[1759217636668,1.66318701,113930.0,113920.0,0.03933]
[1759217637373,0.53765471,113930.0,113920.0,0.03933]
[1759217637574,1.66310701,113930.0,113920.0,0.03933]
[1759217640075,0.86206701,113930.0,113920.0,0.03933]
[1759217640274,1.68350621,113930.0,113920.0,0.03933]
[1759217641276,1.68350349,113930.0,113920.0,0.03933]
[1759217642385,1.66314701,113930.0,113920.0,0.03933]
[1759217643084,1.68310377,113930.0,113920.0,0.1270619]
[1759217644680,1.35869147,113930.0,113920.0,0.1270619]
[1759217644984,1.68310377,113930.0,113920.0,0.1270619]
[1759217648091,1.99418436,113930.0,113920.0,0.004]
[1759217648389,2.01454748,113930.0,113920.0,0.004]
[1759217648889,2.01454748,113930.0,113920.0,0.0044]
[1759217652290,0.88975414,113930.0,113920.0,0.0044]
[1759217652491,1.68991414,113930.0,113920.0,0.0044]
[1759217656198,1.68967414,113930.0,113920.0,0.0044]
[1759217656990,0.13165509,113920.0,113910.0,0.06027751]
[1759217657195,0.1109196,113910.0,113900.0,0.10407511]
[1759217657395,1.61676286,113910.0,113900.0,0.10407511]
[1759217657797,1.62150286,113910.0,113900.0,0.10407511]
[1759217658189,1.60684286,113910.0,113900.0,0.06996355]
[1759217658995,1.60684286,113910.0,113900.0,0.07196355]
[1759217659496,1.60676286,113910.0,113900.0,0.07196355]
[1759217659696,1.60672286,113910.0,113900.0,0.07196355]
[1759217660299,1.13159412,113910.0,113900.0,0.03674355]
[1759217660599,1.93139412,113910.0,113900.0,0.03674355]
[1759217660897,1.93139412,113910.0,113900.0,0.03714355]
[1759217660898,1.93135412,113910.0,113900.0,0.03714355]
[1759217661100,1.910991,113910.0,113900.0,0.03714355]
[1759217661301,1.910951,113910.0,113900.0,0.03714355]
[1759217661700,1.111231,113910.0,113900.0,0.03714355]
[1759217661900,1.910911,113910.0,113900.0,0.03714355]
[1759217662603,1.111231,113910.0,113900.0,0.03714355]
[1759217662803,1.910871,113910.0,113900.0,0.03714355]
[1759217664001,2.04013234,113910.0,113900.0,0.03714355]
[1759217664196,2.04013234,113910.0,113900.0,0.03710355]
[1759217664702,2.06047165,113910.0,113900.0,0.03710355]
[1759217670105,2.04013234,113910.0,113900.0,0.03710355]
[1759217670300,2.06046634,113910.0,113900.0,0.03710355]
[1759217671409,1.26082634,113910.0,113900.0,0.03710355]
[1759217671912,2.06066634,113910.0,113900.0,0.03710355]
[1759217672210,0.61140382,113910.0,113900.0,0.05995355]
[1759217672413,2.06062634,113910.0,113900.0,0.05995355]
[1759217673013,2.06138634,113910.0,113900.0,0.03710355]
[1759217677015,1.41196382,113910.0,113900.0,0.03710355]
[1759217677208,2.06138634,113910.0,113900.0,0.03710355]
[1759217678510,0.93611508,113910.0,113900.0,0.05995355]
[1759217678706,1.73647508,113910.0,113900.0,0.16087085]
[1759217682717,1.73647508,113910.0,113900.0,0.07312355]
[1759217683516,1.73647984,113910.0,113900.0,0.07312355]
[1759217685421,2.0611911,113910.0,113900.0,0.07312355]
[1759217685613,1.73647984,113910.0,113900.0,0.07312355]
[1759217686117,1.73647984,113910.0,113900.0,0.10724511]
[1759217686319,2.0611911,113910.0,113900.0,0.10724511]
[1759217686817,2.0611911,113910.0,113900.0,0.20816241]
[1759217686818,0.85838024,113910.0,113900.0,0.20816241]
[1759217687017,1.65942024,113910.0,113900.0,0.60816241]
[1759217687217,1.74715984,113910.0,113900.0,0.60816241]
[1759217688309,1.65942024,113910.0,113900.0,0.60816241]
[1759217689219,1.74715984,113910.0,113900.0,0.60816241]
[1759217692918,1.74715984,113910.0,113900.0,0.52041511]
[1759217695625,1.6178985,113910.0,113900.0,0.52041511]